[Event "Titled Tuesday Blitz December 27 Early 2022"]
[White "Xiong, Jeffery"]
[Black "Mahdavi, Reza"]
[WhiteFideId "2047640"]
[BlackFideId "12595926"]
[WhiteElo "2692"]
[BlackElo "2339"]
[Result "1-0"]
[Round "09"]
[TimeControl "180+2"]
[Date "2022.12.27"]
[WhiteClock "0:00:03"]
[BlackClock "0:00:09"]

1. d4 {[%clk 0:02:58]}  Nf6 {[%clk 0:02:57]} 2. Nf3 {[%clk 0:02:58]}  g6 {[%clk 0:02:56]} 3. Nbd2 {[%clk 0:02:58]}  d5 {[%clk 0:02:56]} 4. b3 {[%clk 0:02:57]}  Bg7 {[%clk 0:02:55]} 5. Bb2 {[%clk 0:02:57]}  O-O {[%clk 0:02:56]} 6. e3 {[%clk 0:02:57]}  b6 {[%clk 0:02:51]} 7. Be2 {[%clk 0:02:54]}  Bb7 {[%clk 0:02:51]} 8. O-O {[%clk 0:02:55]}  c5 {[%clk 0:02:50]} 9. a4 {[%clk 0:02:55]}  Nc6 {[%clk 0:02:47]} 10. Ne5 {[%clk 0:02:55]}  Nxe5 {[%clk 0:02:46]} 11. dxe5 {[%clk 0:02:55]}  Nd7 {[%clk 0:02:47]} 12. f4 {[%clk 0:02:56]}  e6 {[%clk 0:02:44]} 13. c4 {[%clk 0:02:42]}  Re8 {[%clk 0:02:30]} 14. Bf3 {[%clk 0:02:20]}  Qc7 {[%clk 0:02:26]} 15. a5 {[%clk 0:02:11]}  Rad8 {[%clk 0:02:26]} 16. axb6 {[%clk 0:02:10]}  axb6 {[%clk 0:02:27]} 17. cxd5 {[%clk 0:01:46]}  exd5 {[%clk 0:02:28]} 18. Ra7 {[%clk 0:01:46]}  Qb8 {[%clk 0:02:28]} 19. Qa1 {[%clk 0:01:46]}  Bc6 {[%clk 0:02:21]} 20. Nc4 {[%clk 0:01:43]}  Nf8 {[%clk 0:02:06]} 21. Ra6 {[%clk 0:01:35]}  dxc4 {[%clk 0:02:01]} 22. Bxc6 {[%clk 0:01:35]}  Re6 {[%clk 0:02:01]} 23. Ra8 {[%clk 0:01:28]}  Qc7 {[%clk 0:01:59]} 24. Rxd8 {[%clk 0:01:29]}  Qxd8 {[%clk 0:01:49]} 25. Rd1 {[%clk 0:01:25]}  Qc7 {[%clk 0:01:28]} 26. Bd5 {[%clk 0:01:25]}  cxb3 {[%clk 0:01:23]} 27. Bxe6 {[%clk 0:01:24]}  Nxe6 {[%clk 0:01:24]} 28. Qa4 {[%clk 0:01:18]}  c4 {[%clk 0:01:22]} 29. Rc1 {[%clk 0:00:27]}  Qc5 {[%clk 0:01:21]} 30. Qxc4 {[%clk 0:00:28]}  Qxe3+ {[%clk 0:01:20]} 31. Kh1 {[%clk 0:00:28]}  Nxf4 {[%clk 0:01:21]} 32. Rf1 {[%clk 0:00:19]}  Ne6 {[%clk 0:01:13]} 33. Qc8+ {[%clk 0:00:19]}  Bf8 {[%clk 0:01:10]} 34. Qe8 {[%clk 0:00:17]}  Qe2 {[%clk 0:00:43]} 35. Qxf7+ {[%clk 0:00:16]}  Kh8 {[%clk 0:00:44]} 36. h3 {[%clk 0:00:11]}  h5 {[%clk 0:00:29]} 37. Rf3 {[%clk 0:00:09]}  Qe1+ {[%clk 0:00:17]} 38. Kh2 {[%clk 0:00:08]}  Bc5 {[%clk 0:00:16]} 39. Rf1 {[%clk 0:00:05]}  Qe2 {[%clk 0:00:17]} 40. Bc1 {[%clk 0:00:02]}  Qxe5+ {[%clk 0:00:15]} 41. Kh1 {[%clk 0:00:02]}  Bd6 {[%clk 0:00:10]} 42. Bb2 {[%clk 0:00:02]}  Qxb2 {[%clk 0:00:10]} 43. Qxe6 {[%clk 0:00:02]}  Qe5 {[%clk 0:00:10]} 44. Rf8+ {[%clk 0:00:02]}  Kg7 {[%clk 0:00:11]} 45. Rg8+ {[%clk 0:00:02]}  Kh7 {[%clk 0:00:09]} 46. Qxg6# {[%clk 0:00:03]} 1-0


[Site "https://www.chess.com"]

[Event "Titled Tuesday Blitz December 27 Early 2022"]
[White "Xu, Yi"]
[Black "Samunenkov, Ihor"]
[WhiteFideId "8605564"]
[BlackFideId "14187086"]
[WhiteElo "2527"]
[BlackElo "2501"]
[Result "1-0"]
[Round "09"]
[TimeControl "180+2"]
[Date "2022.12.27"]
[WhiteClock "0:00:38"]
[BlackClock "0:00:08"]

1. e4 {[%clk 0:03:00]}  c6 {[%clk 0:02:59]} 2. d4 {[%clk 0:03:00]}  d5 {[%clk 0:02:59]} 3. e5 {[%clk 0:03:01]}  Bf5 {[%clk 0:02:59]} 4. h4 {[%clk 0:03:01]}  h5 {[%clk 0:02:59]} 5. Bd3 {[%clk 0:03:00]}  Bxd3 {[%clk 0:03:00]} 6. Qxd3 {[%clk 0:03:00]}  Qa5+ {[%clk 0:03:00]} 7. Nd2 {[%clk 0:02:59]}  e6 {[%clk 0:03:01]} 8. Ne2 {[%clk 0:02:59]}  Nh6 {[%clk 0:02:43]} 9. O-O {[%clk 0:02:58]}  Nf5 {[%clk 0:02:43]} 10. Nf3 {[%clk 0:02:57]}  Qa6 {[%clk 0:02:41]} 11. Qd1 {[%clk 0:02:56]}  c5 {[%clk 0:02:41]} 12. c3 {[%clk 0:02:52]}  Nc6 {[%clk 0:02:38]} 13. Bg5 {[%clk 0:02:52]}  Qb6 {[%clk 0:02:18]} 14. Rb1 {[%clk 0:02:34]}  Be7 {[%clk 0:02:08]} 15. b4 {[%clk 0:02:28]}  cxd4 {[%clk 0:02:02]} 16. b5 {[%clk 0:02:25]}  Na5 {[%clk 0:01:54]} 17. Nexd4 {[%clk 0:02:18]}  Nxd4 {[%clk 0:01:46]} 18. cxd4 {[%clk 0:02:16]}  f6 {[%clk 0:01:33]} 19. Bf4 {[%clk 0:02:01]}  Nc4 {[%clk 0:01:32]} 20. Re1 {[%clk 0:02:01]}  Kf7 {[%clk 0:01:31]} 21. Qd3 {[%clk 0:01:45]}  a6 {[%clk 0:00:55]} 22. a4 {[%clk 0:01:30]}  axb5 {[%clk 0:00:46]} 23. Rxb5 {[%clk 0:01:30]}  Qc6 {[%clk 0:00:46]} 24. Qb3 {[%clk 0:01:25]}  b6 {[%clk 0:00:41]} 25. Rc1 {[%clk 0:01:23]}  Ra5 {[%clk 0:00:34]} 26. exf6 {[%clk 0:01:21]}  gxf6 {[%clk 0:00:32]} 27. Nd2 {[%clk 0:01:20]}  Rc8 {[%clk 0:00:13]} 28. Qf3 {[%clk 0:00:50]}  Kg6 {[%clk 0:00:13]} 29. Nxc4 {[%clk 0:00:44]}  dxc4 {[%clk 0:00:12]} 30. Qxh5+ {[%clk 0:00:42]}  Kg7 {[%clk 0:00:11]} 31. Bh6+ {[%clk 0:00:42]}  Kh7 {[%clk 0:00:10]} 32. Bf8+ {[%clk 0:00:38]}  Kg8 {[%clk 0:00:09]} 33. Bxe7 {[%clk 0:00:38]}  Rxb5 {[%clk 0:00:08]} 34. Qg6+ {[%clk 0:00:38]} 1-0


[Site "https://www.chess.com"]

[Event "Titled Tuesday Blitz December 27 Early 2022"]
[White "Yuan, Qingyu"]
[Black "Grigorov, Grigor"]
[WhiteFideId "8609772"]
[BlackFideId "2907313"]
[WhiteElo "2373"]
[BlackElo "2510"]
[Result "1-0"]
[Round "09"]
[TimeControl "180+2"]
[Date "2022.12.27"]
[WhiteClock "0:00:09"]
[BlackClock "0:00:11"]

1. e4 {[%clk 0:03:00]}  c6 {[%clk 0:02:59]} 2. d4 {[%clk 0:03:00]}  d5 {[%clk 0:03:00]} 3. e5 {[%clk 0:03:01]}  Bf5 {[%clk 0:02:59]} 4. h4 {[%clk 0:03:01]}  h5 {[%clk 0:02:59]} 5. Bd3 {[%clk 0:03:02]}  Bxd3 {[%clk 0:02:57]} 6. Qxd3 {[%clk 0:03:03]}  Qa5+ {[%clk 0:02:58]} 7. Nd2 {[%clk 0:03:02]}  e6 {[%clk 0:02:57]} 8. Nf3 {[%clk 0:03:02]}  Nh6 {[%clk 0:02:56]} 9. O-O {[%clk 0:03:03]}  Nf5 {[%clk 0:02:56]} 10. Nb3 {[%clk 0:03:03]}  Qa6 {[%clk 0:02:55]} 11. Qd1 {[%clk 0:03:04]}  Nd7 {[%clk 0:02:52]} 12. Bg5 {[%clk 0:03:04]}  c5 {[%clk 0:02:43]} 13. dxc5 {[%clk 0:02:44]}  Bxc5 {[%clk 0:02:43]} 14. c3 {[%clk 0:02:13]}  Rc8 {[%clk 0:02:41]} 15. Nfd4 {[%clk 0:02:10]}  Bxd4 {[%clk 0:02:38]} 16. Nxd4 {[%clk 0:02:05]}  Nxd4 {[%clk 0:02:35]} 17. cxd4 {[%clk 0:01:50]}  f6 {[%clk 0:02:30]} 18. exf6 {[%clk 0:01:46]}  gxf6 {[%clk 0:02:30]} 19. Bf4 {[%clk 0:01:40]}  Kf7 {[%clk 0:02:24]} 20. Re1 {[%clk 0:01:34]}  Nf8 {[%clk 0:02:14]} 21. Qf3 {[%clk 0:01:31]}  Kg7 {[%clk 0:01:54]} 22. Re3 {[%clk 0:01:17]}  Ng6 {[%clk 0:01:53]} 23. Bg3 {[%clk 0:01:01]}  Rc6 {[%clk 0:01:46]} 24. Rae1 {[%clk 0:00:57]}  Qb6 {[%clk 0:01:39]} 25. Rb3 {[%clk 0:00:53]}  Qa6 {[%clk 0:01:33]} 26. Qe2 {[%clk 0:00:47]}  Qxe2 {[%clk 0:01:25]} 27. Rxb7+ {[%clk 0:00:47]}  Kh6 {[%clk 0:01:21]} 28. Rxe2 {[%clk 0:00:47]}  a6 {[%clk 0:01:08]} 29. Re3 {[%clk 0:00:35]}  Rf8 {[%clk 0:00:57]} 30. Rc3 {[%clk 0:00:27]}  Rfc8 {[%clk 0:00:43]} 31. Rf7 {[%clk 0:00:13]}  f5 {[%clk 0:00:40]} 32. Rb3 {[%clk 0:00:12]}  Rc1+ {[%clk 0:00:20]} 33. Kh2 {[%clk 0:00:12]}  f4 {[%clk 0:00:20]} 34. Bxf4+ {[%clk 0:00:09]}  Nxf4 {[%clk 0:00:19]} 35. Rxf4 {[%clk 0:00:09]}  Kg6 {[%clk 0:00:19]} 36. Rg3+ {[%clk 0:00:09]}  Kh7 {[%clk 0:00:18]} 37. Rf7+ {[%clk 0:00:09]}  Kh6 {[%clk 0:00:16]} 38. Rf6+ {[%clk 0:00:10]}  Kh7 {[%clk 0:00:17]} 39. Rxe6 {[%clk 0:00:09]}  R8c2 {[%clk 0:00:16]} 40. Re5 {[%clk 0:00:09]}  Kh6 {[%clk 0:00:15]} 41. Rf3 {[%clk 0:00:09]}  Rxb2 {[%clk 0:00:14]} 42. Rxd5 {[%clk 0:00:09]}  Rcc2 {[%clk 0:00:14]} 43. Kg3 {[%clk 0:00:08]}  Rxa2 {[%clk 0:00:14]} 44. Rd6+ {[%clk 0:00:09]}  Kg7 {[%clk 0:00:13]} 45. Rd5 {[%clk 0:00:09]}  Kg6 {[%clk 0:00:13]} 46. Rg5+ {[%clk 0:00:09]}  Kh6 {[%clk 0:00:14]} 47. Rf6+ {[%clk 0:00:09]}  Kh7 {[%clk 0:00:14]} 48. Rxh5+ {[%clk 0:00:10]}  Kg7 {[%clk 0:00:15]} 49. Rf4 {[%clk 0:00:10]}  Rc3+ {[%clk 0:00:15]} 50. Kg4 {[%clk 0:00:09]}  Rc6 {[%clk 0:00:15]} 51. Rg5+ {[%clk 0:00:09]}  Kh6 {[%clk 0:00:13]} 52. g3 {[%clk 0:00:08]}  Rd2 {[%clk 0:00:11]} 53. d5 {[%clk 0:00:09]}  Rd6 {[%clk 0:00:11]} 54. Rff5 {[%clk 0:00:08]}  a5 {[%clk 0:00:10]} 55. Rh5+ {[%clk 0:00:08]}  Kg6 {[%clk 0:00:10]} 56. Rfg5+ {[%clk 0:00:09]}  Kf7 {[%clk 0:00:10]} 57. Rh7+ {[%clk 0:00:09]}  Kf8 {[%clk 0:00:11]} 58. Rh8+ {[%clk 0:00:10]}  Kf7 {[%clk 0:00:11]} 59. Rh7+ {[%clk 0:00:10]}  Kf8 {[%clk 0:00:12]} 60. Ra7 {[%clk 0:00:08]}  R2xd5 {[%clk 0:00:11]} 61. Rxa5 {[%clk 0:00:07]}  Rd4+ {[%clk 0:00:11]} 62. f4 {[%clk 0:00:07]}  Kf7 {[%clk 0:00:11]} 63. Raf5+ {[%clk 0:00:08]}  Ke6 {[%clk 0:00:11]} 64. Re5+ {[%clk 0:00:09]}  Kd7 {[%clk 0:00:11]} 65. Rg7+ {[%clk 0:00:09]}  Kc6 {[%clk 0:00:11]} 66. Reg5 {[%clk 0:00:09]}  Rd3 {[%clk 0:00:11]} 67. R7g6 {[%clk 0:00:09]} 1-0


[Site "https://www.chess.com"]

[Event "Titled Tuesday Blitz December 27 Early 2022"]
[White "Zierk, Steven"]
[Black "Shipov, Sergei"]
[WhiteFideId "2034255"]
[BlackFideId "4113624"]
[WhiteElo "2488"]
[BlackElo "2541"]
[Result "1-0"]
[Round "09"]
[TimeControl "180+2"]
[Date "2022.12.27"]
[WhiteClock "0:01:00"]
[BlackClock "0:00:53"]

1. e4 {[%clk 0:03:00]}  e6 {[%clk 0:03:00]} 2. d4 {[%clk 0:03:00]}  d5 {[%clk 0:03:00]} 3. Nc3 {[%clk 0:03:00]}  Bb4 {[%clk 0:03:00]} 4. e5 {[%clk 0:03:00]}  c5 {[%clk 0:02:58]} 5. a3 {[%clk 0:03:00]}  Ba5 {[%clk 0:02:59]} 6. b4 {[%clk 0:02:57]}  cxd4 {[%clk 0:02:59]} 7. Nb5 {[%clk 0:02:56]}  Bc7 {[%clk 0:02:59]} 8. Nf3 {[%clk 0:02:52]}  Nc6 {[%clk 0:02:52]} 9. Nxc7+ {[%clk 0:02:47]}  Qxc7 {[%clk 0:02:52]} 10. Bb5 {[%clk 0:02:47]}  Bd7 {[%clk 0:02:49]} 11. Bxc6 {[%clk 0:02:43]}  bxc6 {[%clk 0:02:49]} 12. Qxd4 {[%clk 0:02:42]}  c5 {[%clk 0:02:48]} 13. Qg4 {[%clk 0:02:38]}  Kf8 {[%clk 0:02:39]} 14. O-O {[%clk 0:02:23]}  cxb4 {[%clk 0:02:38]} 15. axb4 {[%clk 0:02:22]}  Ne7 {[%clk 0:02:35]} 16. Be3 {[%clk 0:02:19]}  Ng6 {[%clk 0:02:34]} 17. h4 {[%clk 0:02:15]}  h6 {[%clk 0:01:46]} 18. h5 {[%clk 0:01:44]}  Ne7 {[%clk 0:01:29]} 19. Bc5 {[%clk 0:01:41]}  Bb5 {[%clk 0:01:27]} 20. Rfe1 {[%clk 0:01:30]}  Kg8 {[%clk 0:01:27]} 21. Nd4 {[%clk 0:01:28]}  Bc4 {[%clk 0:01:27]} 22. Nxe6 {[%clk 0:01:21]}  fxe6 {[%clk 0:01:20]} 23. Qxe6+ {[%clk 0:01:22]}  Kh7 {[%clk 0:01:08]} 24. Bxe7 {[%clk 0:01:21]}  Rhe8 {[%clk 0:01:08]} 25. Qf5+ {[%clk 0:01:13]}  Kh8 {[%clk 0:01:07]} 26. Bc5 {[%clk 0:01:11]}  a5 {[%clk 0:01:06]} 27. e6 {[%clk 0:01:10]}  a4 {[%clk 0:01:03]} 28. Re3 {[%clk 0:01:07]}  d4 {[%clk 0:00:53]} 29. Bxd4 {[%clk 0:01:03]}  Qd6 {[%clk 0:00:53]} 30. Bxg7+ {[%clk 0:01:00]} 1-0


[Site "https://www.chess.com"]

[Event "Titled Tuesday Blitz December 27 Early 2022"]
[White "Zubritskiy, Artyom"]
[Black "Kilic, Eray"]
[WhiteFideId "4181247"]
[BlackFideId "44517173"]
[WhiteElo "2442"]
[BlackElo "2414"]
[Result "1-0"]
[Round "09"]
[TimeControl "180+2"]
[Date "2022.12.27"]
[WhiteClock "0:00:12"]
[BlackClock "0:00:02"]

1. c4 {[%clk 0:03:00]}  e5 {[%clk 0:02:59]} 2. g3 {[%clk 0:03:01]}  Nc6 {[%clk 0:02:59]} 3. Nc3 {[%clk 0:03:01]}  g6 {[%clk 0:03:00]} 4. Bg2 {[%clk 0:03:02]}  Bg7 {[%clk 0:03:00]} 5. Nf3 {[%clk 0:03:01]}  Nge7 {[%clk 0:03:01]} 6. O-O {[%clk 0:03:01]}  O-O {[%clk 0:03:01]} 7. d3 {[%clk 0:02:57]}  d6 {[%clk 0:03:01]} 8. Rb1 {[%clk 0:02:56]}  Nd4 {[%clk 0:02:59]} 9. Nd2 {[%clk 0:02:53]}  Rb8 {[%clk 0:02:53]} 10. b4 {[%clk 0:02:51]}  Bd7 {[%clk 0:02:50]} 11. e3 {[%clk 0:02:50]}  Ne6 {[%clk 0:02:50]} 12. Bb2 {[%clk 0:02:45]}  f5 {[%clk 0:02:44]} 13. f4 {[%clk 0:02:45]}  c6 {[%clk 0:02:40]} 14. Qe2 {[%clk 0:02:21]}  Kh8 {[%clk 0:02:32]} 15. Kh1 {[%clk 0:02:20]}  Ng8 {[%clk 0:02:31]} 16. Nf3 {[%clk 0:02:13]}  Qe7 {[%clk 0:02:22]} 17. c5 {[%clk 0:02:04]}  dxc5 {[%clk 0:02:08]} 18. bxc5 {[%clk 0:01:48]}  exf4 {[%clk 0:02:08]} 19. gxf4 {[%clk 0:01:46]}  Qxc5 {[%clk 0:01:59]} 20. Ne5 {[%clk 0:01:41]}  Qe7 {[%clk 0:01:48]} 21. Rf3 {[%clk 0:01:16]}  g5 {[%clk 0:01:25]} 22. Rh3 {[%clk 0:01:01]}  Bxe5 {[%clk 0:01:24]} 23. fxe5 {[%clk 0:01:02]}  g4 {[%clk 0:01:22]} 24. Rg3 {[%clk 0:00:59]}  Nh6 {[%clk 0:01:19]} 25. Rf1 {[%clk 0:00:45]}  Rf7 {[%clk 0:01:09]} 26. Qd2 {[%clk 0:00:42]}  Rg8 {[%clk 0:01:04]} 27. d4 {[%clk 0:00:41]}  f4 {[%clk 0:00:44]} 28. exf4 {[%clk 0:00:39]}  Nf5 {[%clk 0:00:44]} 29. Rd3 {[%clk 0:00:24]}  Qh4 {[%clk 0:00:43]} 30. Ne4 {[%clk 0:00:19]}  Rg6 {[%clk 0:00:27]} 31. Qf2 {[%clk 0:00:14]}  g3 {[%clk 0:00:15]} 32. Nxg3 {[%clk 0:00:15]}  Nxf4 {[%clk 0:00:14]} 33. Rf3 {[%clk 0:00:13]}  Nxg3+ {[%clk 0:00:14]} 34. Rxg3 {[%clk 0:00:12]}  Rxg3 {[%clk 0:00:05]} 35. Qxg3 {[%clk 0:00:12]}  Qh6 {[%clk 0:00:02]} 36. Bc1 {[%clk 0:00:12]} 1-0


[Site "https://www.chess.com"]

[Event "Titled Tuesday Blitz December 27 Early 2022"]
[White "Adel, Sara"]
[Black "McBryde, Lamel"]
[WhiteFideId "10616764"]
[BlackFideId "2058596"]
[WhiteElo "1739"]
[BlackElo "1861"]
[Result "0-1"]
[Round "10"]
[TimeControl "180+2"]
[Date "2022.12.27"]
[WhiteClock "0:00:04"]
[BlackClock "0:01:06"]

1. e4 {[%clk 0:01:33]}  Nf6 {[%clk 0:02:59]} 2. e5 {[%clk 0:01:13]}  Nd5 {[%clk 0:02:59]} 3. d4 {[%clk 0:01:13]}  Nb6 {[%clk 0:03:00]} 4. c3 {[%clk 0:01:14]}  d5 {[%clk 0:03:00]} 5. exd6 {[%clk 0:01:14]}  cxd6 {[%clk 0:03:00]} 6. Nf3 {[%clk 0:01:15]}  g6 {[%clk 0:03:00]} 7. Bd3 {[%clk 0:01:16]}  Bg7 {[%clk 0:03:01]} 8. O-O {[%clk 0:01:16]}  O-O {[%clk 0:03:02]} 9. Be3 {[%clk 0:01:15]}  Nc6 {[%clk 0:03:00]} 10. Nbd2 {[%clk 0:01:15]}  d5 {[%clk 0:02:59]} 11. Qc2 {[%clk 0:01:16]}  f6 {[%clk 0:02:59]} 12. h3 {[%clk 0:01:16]}  e5 {[%clk 0:02:59]} 13. dxe5 {[%clk 0:01:15]}  fxe5 {[%clk 0:03:00]} 14. Bc5 {[%clk 0:01:15]}  Rf7 {[%clk 0:02:59]} 15. Bb5 {[%clk 0:01:09]}  e4 {[%clk 0:02:54]} 16. Nd4 {[%clk 0:01:01]}  Ne5 {[%clk 0:02:40]} 17. Nxe4 {[%clk 0:00:53]}  dxe4 {[%clk 0:02:39]} 18. Qxe4 {[%clk 0:00:52]}  Qd5 {[%clk 0:02:22]} 19. Qxd5 {[%clk 0:00:43]}  Nxd5 {[%clk 0:02:23]} 20. f4 {[%clk 0:00:44]}  Nxf4 {[%clk 0:02:13]} 21. Be8 {[%clk 0:00:14]}  Rf6 {[%clk 0:02:02]} 22. Kh2 {[%clk 0:00:11]}  Bxh3 {[%clk 0:01:56]} 23. Ba4 {[%clk 0:00:10]}  Bxg2 {[%clk 0:01:54]} 24. Bb3+ {[%clk 0:00:10]}  Kh8 {[%clk 0:01:45]} 25. Rf2 {[%clk 0:00:10]}  Ng4+ {[%clk 0:01:41]} 26. Kg3 {[%clk 0:00:08]}  Nxf2 {[%clk 0:01:39]} 27. Be7 {[%clk 0:00:08]}  Ne4+ {[%clk 0:01:29]} 28. Kh2 {[%clk 0:00:08]}  Re8 {[%clk 0:01:19]} 29. Bxf6 {[%clk 0:00:08]}  Bxf6 {[%clk 0:01:19]} 30. Re1 {[%clk 0:00:05]}  Bh4 {[%clk 0:01:14]} 31. Re3 {[%clk 0:00:06]}  Bf2 {[%clk 0:01:10]} 32. Ne6 {[%clk 0:00:03]}  Bxe3 {[%clk 0:01:07]} 33. Nxf4 {[%clk 0:00:03]}  Bxf4+ {[%clk 0:01:08]} 34. Kxg2 {[%clk 0:00:04]}  Nd2 {[%clk 0:01:06]} 0-1


[Site "https://www.chess.com"]

[Event "Titled Tuesday Blitz December 27 Early 2022"]
[White "Akylbekov, Nasyr"]
[Black "Ambartsumova, Karina"]
[WhiteFideId "13800353"]
[BlackFideId "4166299"]
[WhiteElo "2239"]
[BlackElo "2393"]
[Result "0-1"]
[Round "10"]
[TimeControl "180+2"]
[Date "2022.12.27"]
[WhiteClock "0:00:18"]
[BlackClock "0:00:11"]

1. e4 {[%clk 0:02:49]}  e5 {[%clk 0:02:59]} 2. Nf3 {[%clk 0:02:49]}  Nc6 {[%clk 0:02:59]} 3. Nc3 {[%clk 0:02:50]}  Nf6 {[%clk 0:02:59]} 4. d4 {[%clk 0:02:51]}  exd4 {[%clk 0:02:59]} 5. Nxd4 {[%clk 0:02:52]}  Bb4 {[%clk 0:02:59]} 6. Nxc6 {[%clk 0:02:52]}  bxc6 {[%clk 0:03:00]} 7. Bd3 {[%clk 0:02:52]}  O-O {[%clk 0:03:00]} 8. O-O {[%clk 0:02:53]}  d5 {[%clk 0:03:00]} 9. exd5 {[%clk 0:02:54]}  cxd5 {[%clk 0:03:01]} 10. Bg5 {[%clk 0:02:54]}  c6 {[%clk 0:03:00]} 11. Qf3 {[%clk 0:02:55]}  Rb8 {[%clk 0:03:00]} 12. h3 {[%clk 0:02:55]}  Bd6 {[%clk 0:02:59]} 13. b3 {[%clk 0:02:54]}  Be5 {[%clk 0:02:59]} 14. Bd2 {[%clk 0:02:55]}  Qd6 {[%clk 0:02:58]} 15. Rae1 {[%clk 0:02:55]}  Bd7 {[%clk 0:02:48]} 16. Rxe5 {[%clk 0:02:54]}  Qxe5 {[%clk 0:02:48]} 17. Bf4 {[%clk 0:02:55]}  Qe7 {[%clk 0:02:46]} 18. Bxb8 {[%clk 0:02:53]}  Rxb8 {[%clk 0:02:47]} 19. Ne2 {[%clk 0:02:40]}  Qa3 {[%clk 0:02:36]} 20. Qf4 {[%clk 0:02:34]}  Re8 {[%clk 0:02:32]} 21. Ng3 {[%clk 0:02:18]}  Qxa2 {[%clk 0:02:27]} 22. Qd4 {[%clk 0:02:18]}  Qa5 {[%clk 0:02:21]} 23. Ra1 {[%clk 0:02:12]}  Re1+ {[%clk 0:02:20]} 24. Rxe1 {[%clk 0:02:12]}  Qxe1+ {[%clk 0:02:21]} 25. Kh2 {[%clk 0:02:13]}  Qa5 {[%clk 0:02:17]} 26. Bf5 {[%clk 0:02:02]}  Qb6 {[%clk 0:01:56]} 27. Qf4 {[%clk 0:01:58]}  g6 {[%clk 0:01:34]} 28. Bxd7 {[%clk 0:01:52]}  Nxd7 {[%clk 0:01:35]} 29. Qd6 {[%clk 0:01:52]}  Nf8 {[%clk 0:01:35]} 30. f4 {[%clk 0:01:50]}  Qb7 {[%clk 0:00:59]} 31. f5 {[%clk 0:01:43]}  Qd7 {[%clk 0:00:59]} 32. Qe5 {[%clk 0:01:38]}  Qd8 {[%clk 0:00:50]} 33. f6 {[%clk 0:01:22]}  Ne6 {[%clk 0:00:46]} 34. Qc3 {[%clk 0:00:52]}  Qd6 {[%clk 0:00:41]} 35. Kh1 {[%clk 0:00:49]}  h5 {[%clk 0:00:36]} 36. Ne2 {[%clk 0:00:47]}  c5 {[%clk 0:00:28]} 37. Qa5 {[%clk 0:00:40]}  Qb6 {[%clk 0:00:28]} 38. Qa4 {[%clk 0:00:39]}  Qc7 {[%clk 0:00:23]} 39. Qe8+ {[%clk 0:00:25]}  Nf8 {[%clk 0:00:12]} 40. Nc3 {[%clk 0:00:26]}  Qd6 {[%clk 0:00:12]} 41. Qe7 {[%clk 0:00:23]}  Qe6 {[%clk 0:00:11]} 42. Na4 {[%clk 0:00:19]}  Nd7 {[%clk 0:00:10]} 43. Nc3 {[%clk 0:00:12]}  g5 {[%clk 0:00:05]} 44. Nb5 {[%clk 0:00:10]}  Nxf6 {[%clk 0:00:04]} 45. Qd8+ {[%clk 0:00:08]}  Kg7 {[%clk 0:00:04]} 46. Nc7 {[%clk 0:00:06]}  Qe1+ {[%clk 0:00:04]} 47. Kh2 {[%clk 0:00:07]}  Qe5+ {[%clk 0:00:05]} 48. Kh1 {[%clk 0:00:08]}  Ne4 {[%clk 0:00:05]} 49. Qxd5 {[%clk 0:00:07]}  Ng3+ {[%clk 0:00:05]} 50. Kg1 {[%clk 0:00:08]}  Qxc7 {[%clk 0:00:05]} 51. Qxg5+ {[%clk 0:00:07]}  Kf8 {[%clk 0:00:04]} 52. Qe3 {[%clk 0:00:07]}  Nf5 {[%clk 0:00:03]} 53. Qg5 {[%clk 0:00:07]}  Qe5 {[%clk 0:00:03]} 54. Qd8+ {[%clk 0:00:07]}  Kg7 {[%clk 0:00:04]} 55. Qg5+ {[%clk 0:00:08]}  Kh7 {[%clk 0:00:03]} 56. Qxh5+ {[%clk 0:00:08]}  Kg7 {[%clk 0:00:03]} 57. Qg5+ {[%clk 0:00:09]}  Kf8 {[%clk 0:00:03]} 58. Qd8+ {[%clk 0:00:10]}  Qe8 {[%clk 0:00:04]} 59. Qg5 {[%clk 0:00:09]}  Qe3+ {[%clk 0:00:04]} 60. Qxe3 {[%clk 0:00:09]}  Nxe3 {[%clk 0:00:05]} 61. c4 {[%clk 0:00:10]}  Nc2 {[%clk 0:00:04]} 62. Kf2 {[%clk 0:00:10]}  Nd4 {[%clk 0:00:05]} 63. b4 {[%clk 0:00:11]}  cxb4 {[%clk 0:00:06]} 64. Ke3 {[%clk 0:00:11]}  b3 {[%clk 0:00:07]} 65. Kd2 {[%clk 0:00:11]}  a5 {[%clk 0:00:07]} 66. Kd3 {[%clk 0:00:12]}  a4 {[%clk 0:00:06]} 67. Kxd4 {[%clk 0:00:13]}  b2 {[%clk 0:00:07]} 68. c5 {[%clk 0:00:14]}  b1=Q {[%clk 0:00:08]} 69. Kd5 {[%clk 0:00:15]}  Qb8 {[%clk 0:00:08]} 70. Kc6 {[%clk 0:00:15]}  Qc8+ {[%clk 0:00:09]} 71. Kd6 {[%clk 0:00:16]}  a3 {[%clk 0:00:10]} 72. c6 {[%clk 0:00:17]}  a2 {[%clk 0:00:11]} 73. c7 {[%clk 0:00:18]}  a1=Q {[%clk 0:00:11]} 0-1


[Site "https://www.chess.com"]